bitfinex/quotes_ETHUSD_20220113
["timestamp","ask_amount","ask_price","bid_price","bid_amount"]
[1642088073939,0.1508744,3290.8,3288.7,0.4822]
[1642088073940,0.00852636,3290.1,3288.7,0.4822]
[1642088074177,1.15569131,3292.2,3288.7,0.4822]
[1642088074178,0.01295954,3291.7,3289.6,6.55]
[1642088074370,0.01295954,3291.7,3289.6,7.5825]
[1642088074566,0.00341054,3290.7,3289.7,0.00642197]
[1642088074767,0.01295954,3291.7,3289.9,6.55]
[1642088074966,0.01295954,3291.7,3290.0,0.37315425]
[1642088075169,0.00511581,3291.6,3290.0,0.36697897]
[1642088075368,0.00511581,3291.6,3291.3,0.54061518]
[1642088075568,0.00454739,3291.5,3291.3,0.54061518]
[1642088075770,0.00454739,3291.5,3291.4,6.93021868]
[1642088075968,0.0129703,3293.0,3291.4,6.913]
[1642088076173,3.8398,3294.0,3291.5,0.3]
[1642088076369,0.00682108,3292.7,3291.5,0.6366]
[1642088076569,0.00682108,3292.7,3292.5,0.58797185]
[1642088076873,0.00625265,3292.6,3292.4,0.363]
[1642088077068,0.00625265,3292.6,3291.9,1.0]
[1642088077268,0.13819997,3293.9,3291.7,0.1184]
[1642088077269,0.00568423,3292.5,3291.8,0.363]
[1642088077472,0.01276306,3293.4,3292.1,6.55]
[1642088077668,0.01276306,3293.4,3292.2,0.40605815]
[1642088077909,0.00454739,3293.3,3293.0,1.3678936]
[1642088078112,0.00454739,3293.3,3293.1,0.3]
[1642088078309,1.15569131,3294.4,3293.1,7.213]
[1642088078310,0.00397896,3293.2,3293.1,7.213]
[1642088078511,0.01213113,3294.3,3293.2,6.55]
[1642088078810,3.62488633,3295.4,3293.3,0.4774]
[1642088078811,0.00568424,3294.2,3293.3,0.4774]
[1642088079010,0.00568424,3294.2,3293.5,1.2735985]
[1642088079210,0.01253373,3294.8,3294.1,0.57938294]
[1642088079414,0.01253373,3294.8,3293.6,0.363]
[1642088079615,0.00852636,3294.7,3293.6,0.363]
[1642088080011,0.01210855,3293.8,3293.6,0.363]
[1642088080413,0.00284212,3293.7,3293.6,0.363]
[1642088080616,0.00284212,3293.7,3293.6,0.80355338]
[1642088080812,0.00284212,3293.7,3293.6,0.363]
[1642088081014,0.00284212,3293.7,3292.8,0.363]
[1642088081319,0.0022737,3293.6,3292.6,3.738]
[1642088081597,2.68467606,3294.6,3292.4,1.4935159]
[1642088081598,0.01237273,3293.8,3292.4,1.4935159]
[1642088081785,0.01237273,3293.8,3293.1,4.212e-05]
[1642088082089,1.0,3294.1,3291.4,3.6381]
[1642088082090,6.55,3293.1,3291.4,3.6381]
[1642088082290,0.01240185,3292.5,3290.4,3.8691]
[1642088082485,0.01240185,3292.5,3291.5,0.00909477]
[1642088082685,1.20858353,3292.3,3291.5,0.00909477]
[1642088082886,0.00744901,3292.2,3291.5,0.00909477]
[1642088083090,1.20858353,3292.3,3291.5,0.00909477]
[1642088083285,1.50858353,3292.3,3291.5,0.00909477]
[1642088083487,1.50858353,3292.3,3291.2,0.01080005]
[1642088083786,1.50858353,3292.3,3290.5,0.01477901]
[1642088083787,0.3,3292.3,3290.5,0.01477901]
[1642088083985,2.95663591,3292.2,3290.5,0.01477901]
[1642088084388,3.25663591,3292.2,3290.6,0.59368766]
[1642088084591,1.0,3292.0,3290.6,0.59368766]
[1642088084786,0.03323665,3291.9,3291.1,0.58548134]
[1642088084987,1.36801472,3291.7,3290.7,0.01364216]
[1642088085187,1.36801472,3291.7,3291.2,0.01080005]
[1642088085413,1.36801472,3291.7,3290.5,0.01477901]
[1642088086015,1.36801472,3291.7,3290.6,0.0056461]
[1642088086215,1.36801472,3291.7,3290.4,1.5189]
[1642088086216,5.75,3291.6,3290.4,1.43367901]
[1642088086416,1.14336291,3291.2,3290.4,1.43367901]
[1642088086618,0.00568424,3291.5,3290.4,0.21477901]
[1642088086820,0.00341054,3291.1,3290.5,0.363]
[1642088087021,0.00511581,3291.4,3290.5,0.38276178]
[1642088087220,0.13819997,3292.9,3290.6,0.06482981]
[1642088087221,0.00284212,3291.0,3290.6,0.06482981]
[1642088087517,0.00227369,3290.9,3290.6,0.42782981]
[1642088087721,1.27607783,3292.1,3290.9,1.4436607]
[1642088087916,0.13819997,3292.9,3291.4,0.03798344]
[1642088088119,0.01080005,3292.8,3291.3,0.52557661]
[1642088088517,0.13819997,3292.9,3291.3,0.52557661]
[1642088088518,0.01023163,3292.7,3291.3,0.52557661]
[1642088088918,0.13819997,3292.9,3291.3,0.52557661]
[1642088088919,0.0096632,3292.6,3291.3,0.52557661]
[1642088089160,1.32475868,3292.4,3291.3,0.52557661]
[1642088089357,0.02797808,3292.3,3291.3,0.52557661]
[1642088089558,0.03593601,3292.3,3291.3,0.52557661]
[1642088089760,0.00738951,3292.2,3291.3,0.52557661]
[1642088090158,0.00682109,3292.1,3291.4,0.0079884]
[1642088090357,0.00682109,3292.1,3291.3,0.52557661]
[1642088090559,0.00625266,3292.0,3291.3,0.52557661]
[1642088090959,0.0123266,3293.2,3291.3,0.52557661]
[1642088090960,0.00568424,3291.9,3291.3,0.52557661]
[1642088091357,0.00511582,3291.8,3291.4,0.00674686]
[1642088091563,0.00511582,3291.8,3291.3,0.52557661]
[1642088091758,1.0,3292.6,3290.7,6.93074684]
[1642088091759,0.00454739,3291.7,3290.7,6.55113684]
[1642088091958,0.02916293,3291.6,3290.7,6.55113684]
[1642088092160,0.05170792,3291.4,3290.7,0.00113684]
[1642088092559,0.0022737,3291.3,3290.4,0.00284211]
[1642088092820,0.0022737,3291.3,3290.7,0.44061234]
[1642088093010,0.012951,3292.4,3290.9,0.02962447]
[1642088093209,0.012951,3292.4,3290.8,0.00227369]
[1642088093409,0.00113685,3291.4,3291.0,0.00113684]
[1642088093610,0.01164353,3291.3,3290.4,0.00454738]
[1642088093810,0.00113685,3291.4,3290.4,0.00454738]
[1642088094010,1.30280091,3291.4,3290.4,0.00454738]
[1642088094211,1.30280091,3291.4,3290.6,0.49864594]
[1642088094611,1.30280091,3291.4,3290.7,0.00284211]
[1642088095016,0.00113685,3291.4,3290.6,0.45148805]
[1642088095314,1.65711617,3293.1,3290.6,0.45148805]
[1642088095315,0.00341054,3291.3,3290.8,0.06482981]
[1642088095516,0.00341054,3291.3,3290.6,0.70648805]
[1642088095517,0.00341054,3291.3,3290.9,0.363]
[1642088095713,0.00284211,3291.2,3291.0,0.363]
[1642088096014,1.26757489,3292.8,3291.1,8.32293134]
[1642088096214,0.13819997,3293.1,3291.3,0.37957]
[1642088096414,0.01307374,3293.0,3291.4,0.02169221]
[1642088096858,0.01212514,3292.7,3291.1,0.3]
[1642088097158,0.01080004,3292.6,3290.1,2.43767534]
[1642088097356,0.77028004,3292.6,3290.1,2.43767534]
[1642088097560,1.31023162,3292.5,3290.5,0.00113685]
[1642088097958,0.02457804,3292.3,3291.1,0.43799022]
[1642088098157,0.02457804,3292.3,3290.6,1.50024899]
[1642088098460,0.00852635,3292.2,3290.7,0.3]
[1642088098657,0.00852635,3292.2,3290.7,0.663]
[1642088098858,0.00795793,3292.1,3290.7,0.72782981]
[1642088099058,0.00795793,3292.1,3291.5,1.24526037]
[1642088099259,0.13819997,3293.1,3291.6,0.85661879]
[1642088099260,0.0073895,3292.0,3291.6,0.85661879]
[1642088099459,0.0073895,3292.0,3291.7,0.37953]
[1642088099659,4.06300575,3293.5,3291.7,0.37953]
[1642088099660,0.00682108,3291.9,3291.7,0.37953]
[1642088099859,4.05012067,3293.5,3291.8,6.55]
[1642088099860,0.13819997,3293.5,3291.8,6.55]
[1642088100065,0.13819997,3293.5,3291.9,0.02766324]
[1642088100314,0.13819997,3293.5,3292.2,5.0]
[1642088100315,0.04672632,3293.5,3292.2,5.0]
[1642088100508,0.04672632,3293.5,3292.3,0.3]
[1642088100709,0.04672632,3293.5,3292.3,0.30625266]
[1642088100909,0.04672632,3293.5,3292.4,0.53691423]
[1642088101110,3.9119207,3293.9,3292.4,0.00568423]
[1642088101310,1.16867887,3294.1,3292.9,1.22146203]
[1642088101311,0.01298756,3294.1,3292.9,1.22146203]
[1642088101610,0.00227369,3293.8,3293.0,0.02189224]
[1642088101810,0.00227369,3293.8,3293.0,0.00227369]
[1642088102009,1.15569131,3294.4,3293.1,0.00170527]
[1642088102010,0.00170527,3293.7,3293.1,0.00170527]
[1642088102211,0.00170527,3293.7,3293.0,0.51486138]
[1642088102410,2.60718705,3294.0,3293.1,0.00170527]
[1642088102411,0.00113685,3293.6,3293.1,0.00170527]
[1642088102618,0.00113685,3293.6,3293.3,1.19587653]
[1642088102811,0.00284212,3293.9,3293.1,0.00170527]
[1642088103112,0.00284212,3293.9,3293.3,0.3]
[1642088103311,0.00284212,3293.9,3293.1,0.30170527]
[1642088103611,0.00284212,3293.9,3293.2,0.00113685]
[1642088104259,0.00284212,3293.9,3293.3,0.363]
[1642088104460,0.00284212,3293.9,3293.4,0.00920721]
[1642088104661,0.00284212,3293.9,3293.5,0.46619771]
[1642088105165,0.00284212,3293.9,3293.6,0.53107]
[1642088105362,2.55965428,3294.5,3293.6,0.53107]
[1642088105562,2.55965428,3294.5,3293.1,0.76037527]
[1642088105563,6.07,3294.6,3293.7,0.00113685]
[1642088105762,0.00284212,3294.4,3293.7,0.00113685]
[1642088105962,1.19988431,3294.3,3292.8,0.00625266]
[1642088106162,1.52499069,3294.3,3292.7,0.00682108]
[1642088106361,0.01230217,3294.1,3292.6,0.57683194]
[1642088106563,0.01230217,3294.1,3292.5,0.00795793]
[1642088106564,1.0,3293.9,3292.5,0.00795793]
[1642088106762,0.0196121,3293.8,3292.7,0.00682108]
[1642088106961,0.0196121,3293.8,3292.4,0.00852635]
[1642088107163,1.3,3293.9,3292.3,0.00909478]
[1642088107362,1.20862559,3292.7,3292.3,0.00909478]
[1642088107562,1.20862559,3292.7,3291.0,2.4379389]
[1642088107563,5.21241418,3292.6,3291.0,2.4379389]
[1642088107829,0.01411945,3292.6,3291.4,0.01421059]
[1642088108018,0.00113685,3292.5,3291.5,0.04305815]
[1642088108215,0.00113685,3292.5,3291.4,0.01421059]
[1642088108415,0.3,3292.9,3292.0,0.53136]
[1642088108616,0.00397897,3293.0,3292.0,0.53136]
[1642088108817,0.00284212,3292.8,3292.1,0.00113684]
[1642088109117,0.0022737,3292.7,3292.0,0.00170527]
[1642088109516,0.00170527,3292.6,3292.0,0.00170527]
[1642088109817,0.00113685,3292.5,3292.0,0.00170527]
[1642088110016,0.00113685,3292.5,3292.0,0.38123527]
[1642088110217,0.00795793,3293.7,3292.0,0.38123527]
[1642088110421,0.00795793,3293.7,3292.1,0.00113684]
[1642088110617,0.00738951,3293.6,3292.5,0.53129]
[1642088110818,0.00738951,3293.6,3292.0,1.36428527]
[1642088111019,0.00682108,3293.5,3292.5,0.37948]
[1642088111219,0.00682108,3293.5,3292.3,0.363]
[1642088111420,2.4379389,3294.2,3293.4,0.56393171]
[1642088111663,3.9119207,3294.5,3293.4,0.56393171]
[1642088111864,0.01080005,3294.2,3293.5,0.54508554]
[1642088112064,0.01080005,3294.2,3293.5,0.53114]
[1642088112363,1.73353696,3295.1,3293.8,1.3008238]
[1642088112364,0.01023163,3294.1,3293.8,1.3008238]
[1642088112565,0.01023163,3294.1,3293.9,0.92261886]
[1642088112766,0.0096632,3294.0,3293.9,0.90409362]
[1642088113068,2.4379389,3295.0,3293.9,0.90409362]
[1642088113263,1.55698979,3295.1,3293.9,0.90409362]
[1642088113463,0.00454739,3294.8,3293.9,0.90409362]
[1642088113864,0.00397897,3294.7,3294.0,0.57004193]
[1642088114166,0.13819997,3295.4,3294.1,0.01722375]
[1642088114167,0.00341054,3294.6,3294.1,0.01722375]
[1642088114364,0.00341054,3294.6,3294.1,0.00941863]
[1642088114565,0.00284212,3294.5,3294.1,0.00941863]
[1642088114767,0.00284212,3294.5,3293.9,0.90409362]
[1642088114768,0.01436821,3294.5,3293.9,0.90409362]
[1642088114968,0.0022737,3294.4,3293.9,0.90409362]
[1642088115414,0.00170527,3294.3,3294.1,0.7585]
[1642088115915,0.04672632,3295.7,3294.3,0.00768092]
[1642088116413,0.04672632,3295.7,3294.2,5.45]
[1642088116414,0.00795793,3295.6,3294.2,5.45]
[1642088116613,0.00795793,3295.6,3294.1,0.3]
[1642088116812,0.03244595,3295.5,3293.9,0.75858]
[1642088117012,0.03244595,3295.5,3294.2,0.46701542]
[1642088117214,1.26167948,3295.1,3294.3,0.53102]
[1642088117412,0.00682108,3295.4,3294.4,0.01343773]
[1642088117614,0.00454739,3295.0,3294.2,0.46701542]
[1642088117813,0.00625266,3295.3,3294.3,0.75848]
[1642088118014,0.00397896,3294.9,3294.2,0.76701542]
[1642088118215,0.04672632,3295.7,3294.2,0.76701542]
[1642088118216,0.00568423,3295.2,3294.2,0.76701542]
[1642088118413,0.00341054,3294.8,3294.3,0.53101]
[1642088118613,0.04672632,3295.7,3294.3,0.53101]
[1642088118614,0.02440946,3294.7,3294.3,0.53101]
[1642088118813,0.00284212,3294.7,3294.3,0.53101]
[1642088119064,0.04672632,3295.7,3294.3,5.63101]
[1642088119364,0.00568424,3295.6,3295.2,0.4886006]
[1642088119563,0.00568424,3295.6,3294.8,0.53094]
[1642088119763,0.00511581,3295.5,3294.8,0.53094]
[1642088120166,0.00454739,3295.4,3294.8,0.53094]
[1642088120364,0.00454739,3295.4,3294.9,0.00579442]
[1642088120569,0.00397897,3295.3,3295.1,0.03052633]
[1642088120966,0.00341054,3295.2,3295.0,1.36166]
[1642088121168,0.00341054,3295.2,3295.1,7.59458924]
[1642088121372,0.10186652,3296.7,3295.1,7.59458924]
[1642088121373,3.9119207,3296.6,3295.2,0.04305815]
[1642088121667,0.02668801,3296.5,3296.3,0.3167]
[1642088121868,0.06266657,3296.7,3296.3,1.3685]
[1642088122069,0.06266657,3296.7,3296.3,1.6685]
[1642088122267,0.06266657,3296.7,3296.6,0.45105301]
[1642088122467,0.06266657,3296.7,3296.3,1.3518]
[1642088122667,0.01974635,3296.6,3296.3,0.3]
[1642088122922,0.01292007,3296.7,3295.1,1.42455]
[1642088123122,0.01292007,3296.7,3295.1,1.80371]
[1642088123328,0.01292007,3296.7,3295.2,0.00738951]
[1642088123522,1.13441871,3296.0,3295.4,0.46183237]
[1642088123723,0.01292007,3296.7,3295.4,0.46183237]
[1642088123923,0.01292007,3296.7,3295.5,0.00568424]
[1642088124122,0.00113685,3296.7,3295.7,0.53074]
[1642088124521,0.00113685,3296.7,3295.8,0.0096382]
[1642088124723,1.11293153,3296.7,3295.8,0.00397897]
[1642088124922,0.00113685,3296.7,3296.2,0.50894202]
[1642088125127,0.00113685,3296.7,3296.3,0.01657356]
[1642088125323,0.00113685,3296.7,3296.3,0.00113685]
[1642088125623,0.00113685,3296.7,3296.5,0.53062]
[1642088126662,0.00113685,3296.7,3296.5,0.75795]
[1642088126863,0.00113685,3296.7,3296.3,0.00113685]
[1642088127064,0.04487304,3296.6,3296.3,0.00113685]
[1642088127262,0.15827306,3297.1,3295.9,0.00341054]
[1642088127465,1.0120064,3297.2,3295.9,0.00454739]
[1642088127663,0.00113684,3296.9,3295.9,0.00454739]
[1642088127863,0.00113684,3296.9,3296.8,0.44774435]
[1642088129368,1.0120064,3297.2,3296.9,6.55]
[1642088129369,0.31190152,3297.2,3296.9,6.55]
[1642088129566,6.07,3298.6,3297.7,0.53037]
[1642088129766,6.07,3298.6,3297.8,0.06835141]
[1642088129965,6.07,3298.6,3297.0,6.85]
[1642088130414,6.07,3298.6,3297.1,1.13651]
[1642088130613,6.07,3298.6,3297.0,6.85]
[1642088130614,8.65221673,3298.6,3297.0,0.3]
[1642088130816,1.31606583,3297.7,3296.4,1.06116]
[1642088131017,2.63005854,3297.6,3296.0,3.3055]
[1642088131215,0.00397897,3297.6,3296.5,0.00227369]
[1642088131415,0.00397897,3297.6,3296.1,0.00454739]
[1642088131615,0.00397897,3297.6,3296.8,0.61977303]
[1642088131816,1.1639351,3296.8,3296.3,0.37904]
[1642088132015,1.1639351,3296.8,3295.9,0.00568423]
[1642088132214,1.1639351,3296.8,3295.8,3.70137365]
[1642088132215,1.1639351,3296.8,3296.4,0.00284212]
[1642088132416,1.4639351,3296.8,3295.9,0.00568423]
[1642088133016,1.59398394,3296.1,3294.8,0.01193689]
[1642088133216,1.59398394,3296.1,3295.3,0.00909477]
[1642088133519,1.59398394,3296.1,3294.5,1.15403019]
[1642088133520,1.59398394,3296.1,3294.6,0.01307374]
[1642088133716,1.59398394,3296.1,3294.7,0.5309]
[1642088133916,1.59398394,3296.1,3294.9,0.51895662]
[1642088134166,1.10135721,3295.4,3294.9,0.51895662]
[1642088134362,0.3,3296.1,3295.0,0.01080004]
[1642088134562,0.3,3296.5,3295.0,0.01080004]
[1642088134767,0.363,3296.6,3295.3,0.5308]
[1642088135064,0.663,3296.6,3295.5,0.52314287]
[1642088135464,1.24759519,3295.9,3295.6,0.0073895]
[1642088135665,0.3,3296.6,3295.6,0.0073895]
[1642088135867,0.3,3296.6,3295.4,0.05797282]
[1642088136168,0.363,3296.9,3295.5,0.00795793]
[1642088136169,0.663,3296.9,3295.5,0.00795793]
[1642088136367,0.663,3296.9,3295.7,0.50212399]
[1642088136565,0.663,3296.9,3295.8,0.08424664]
[1642088136765,1.56225952,3296.3,3295.8,0.0904993]
[1642088136965,1.56225952,3296.3,3295.9,0.00568423]
[1642088137366,1.56225952,3296.3,3295.5,0.00795793]
[1642088137566,1.56225952,3296.3,3295.4,0.38766635]
[1642088137821,1.56225952,3296.3,3295.5,0.00795793]
[1642088138017,0.363,3296.2,3295.5,0.00795793]
[1642088138213,0.363,3296.2,3295.1,0.01023162]
[1642088138413,0.7585928,3295.9,3294.3,0.01477901]
[1642088138612,1.313,3296.2,3294.1,0.01591585]
[1642088138817,0.313,3296.2,3294.2,0.77382743]
[1642088139016,1.56225952,3296.3,3294.8,1.26835971]
[1642088139215,1.56225952,3296.3,3295.5,0.5515293]
[1642088139612,1.56225952,3296.3,3295.6,0.0073895]
[1642088140315,0.0128823,3297.3,3295.7,0.05426126]
[1642088140512,0.0128823,3297.3,3295.6,0.0073895]
[1642088140513,0.0128823,3297.3,3296.4,0.54734099]
[1642088140712,0.00170527,3297.2,3296.5,0.07045304]
[1642088140914,0.00170527,3297.2,3296.5,0.00227369]
[1642088141114,6.20819997,3297.4,3296.6,0.00170527]
[1642088141115,0.00113685,3297.1,3296.6,0.00170527]
[1642088141323,0.00113685,3297.1,3296.7,0.37901]
[1642088141567,6.07,3297.4,3296.7,0.37901]
[1642088141568,0.0022737,3297.3,3296.7,0.37901]
[1642088141967,0.00170527,3297.2,3296.7,0.37901]
[1642088142367,0.00113685,3297.1,3296.5,0.00227369]
[1642088142570,0.00113685,3297.1,3296.6,0.37902]
[1642088142768,0.0022737,3297.3,3296.9,0.53814214]
[1642088143168,0.00170527,3297.2,3297.0,0.07109841]
[1642088143369,0.00170527,3297.2,3296.9,0.53814214]
[1642088143569,0.05972238,3298.3,3296.7,0.00113684]
[1642088143570,0.00113685,3297.1,3296.7,0.00113684]
[1642088143972,0.00738951,3298.2,3296.6,1.93352879]
[1642088144168,0.00738951,3298.2,3296.7,0.06934869]
[1642088144369,0.00682108,3298.1,3296.7,0.00113684]
[1642088144569,0.7580519,3298.0,3296.9,0.55243489]
[1642088144769,0.00625266,3298.0,3296.7,0.00113684]
[1642088144969,0.00568424,3297.9,3296.7,0.00113684]
[1642088145172,0.00568424,3297.9,3296.4,0.53350212]
[1642088145415,0.00511581,3297.8,3296.6,0.37902]
[1642088145615,1.16303294,3297.7,3296.6,0.37902]
[1642088145814,1.11758033,3297.7,3296.9,0.59425536]
[1642088146316,0.00454739,3297.7,3297.1,0.08793119]
[1642088146517,0.00454739,3297.7,3297.0,0.09147365]
[1642088146714,0.7579862,3297.5,3297.0,0.09147365]
[1642088146914,0.00454739,3297.7,3297.0,0.09147365]
[1642088147217,0.00284212,3297.4,3297.0,0.92203365]
[1642088147415,0.00284212,3297.4,3297.0,0.39147365]
[1642088147617,0.00284212,3297.4,3296.7,0.00113684]
[1642088147618,0.0022737,3297.3,3296.7,0.00113684]
[1642088148015,0.00170527,3297.2,3296.0,0.00511581]
[1642088148415,1.39732497,3297.0,3296.2,0.46919414]
[1642088148815,0.3,3297.0,3296.3,0.00341054]
[1642088149263,0.7581412,3297.1,3296.4,0.53067]
[1642088149463,0.03738143,3297.2,3296.3,0.00341054]
[1642088149464,0.00170527,3297.2,3296.3,0.00341054]
[1642088149663,0.00170527,3297.2,3296.5,0.00227369]
[1642088149863,0.00113685,3297.1,3296.6,1.29182366]
[1642088150067,0.00113685,3297.1,3296.7,0.60347954]
[1642088150263,1.15527273,3298.0,3296.8,0.7579]
[1642088150264,0.01295804,3297.6,3296.8,0.7579]
[1642088150665,0.00341054,3297.5,3297.2,0.52677613]
[1642088150966,0.00284212,3297.4,3297.2,0.52677613]
[1642088151365,0.0022737,3297.3,3297.2,0.52677613]
[1642088152463,0.0022737,3297.3,3297.2,5.47677613]
[1642088153312,0.0022737,3297.3,3297.2,5.7588846]
[1642088154513,0.0022737,3297.3,3297.2,7.3588846]
[1642088154712,0.03714222,3298.7,3298.1,0.28210847]
[1642088155012,0.04672632,3298.8,3298.1,0.28210847]
[1642088155411,0.00795792,3298.7,3298.1,0.28210847]
[1642088155611,0.7576648,3298.6,3298.1,0.28210847]
[1642088155811,0.3,3298.5,3298.1,0.28210847]
[1642088156012,0.30682108,3298.5,3298.1,0.28210847]
[1642088156211,0.00625265,3298.4,3298.1,0.23210847]
[1642088156411,0.00625265,3298.4,3298.2,0.04532614]
[1642088156663,0.00568423,3298.3,3298.2,0.25452292]
[1642088156863,0.30568423,3298.3,3298.2,0.25452292]
[1642088157061,0.00568423,3298.3,3298.2,0.25452292]
[1642088159171,0.757841,3297.8,3296.7,1.51643684]
[1642088159371,1.5156819,3297.9,3296.9,2.05143501]
[1642088159565,0.00227369,3297.7,3297.6,0.44335106]
[1642088159767,0.00284211,3297.8,3297.6,0.44335106]
[1642088159969,2.56093792,3301.0,3297.7,8.39649514]
[1642088159970,2.31049269,3299.0,3297.7,8.39649514]
[1642088160171,3.0307779,3299.5,3297.7,8.39649514]
[1642088160172,1.49844936,3299.1,3297.7,26.17666]
[1642088160411,1.49844936,3299.1,3297.7,0.363]
[1642088160412,0.0022737,3298.2,3297.7,0.363]
[1642088160613,0.0022737,3298.2,3297.6,0.4444879]
[1642088160810,0.00170527,3298.1,3297.6,0.4444879]
[1642088161011,0.00170527,3298.1,3297.6,0.00113684]
[1642088161210,1.23602148,3298.0,3297.6,0.00113684]
[1642088161411,1.23602148,3298.0,3297.0,0.00454738]
[1642088161412,0.7580434,3297.9,3297.0,0.00454738]
[1642088161613,1.0580434,3297.9,3297.0,0.00454738]
[1642088161814,1.09677281,3297.9,3296.7,0.00625265]
[1642088162012,1.09677281,3297.9,3297.4,0.46347417]
[1642088162211,1.09677281,3297.9,3296.7,0.00625265]
[1642088162412,1.09677281,3297.9,3297.5,0.00170527]
[1642088162612,1.09677281,3297.9,3296.7,0.00625265]
[1642088162814,1.09677281,3297.9,3296.9,0.53057]
[1642088163115,1.09677281,3297.9,3297.0,0.00454738]
[1642088163116,1.09097946,3297.9,3297.0,0.00454738]
[1642088163413,1.09097946,3297.9,3297.2,1.52527725]
[1642088163614,1.09097946,3297.9,3296.9,0.00511581]
[1642088163914,1.09097946,3297.9,3297.5,0.37892]
[1642088163915,1.0971897,3297.9,3297.5,0.37892]
[1642088164166,0.3,3297.9,3297.5,0.37892]
[1642088164366,0.3,3297.9,3297.6,0.00113684]
[1642088164562,2.31770187,3298.6,3297.6,0.00113684]
[1642088164963,0.30397897,3298.5,3298.3,0.54853566]
[1642088165164,1.09304238,3298.5,3298.3,0.54853566]
[1642088165363,0.00341054,3298.4,3298.3,0.54853566]
[1642088166265,0.00341054,3298.4,3298.3,4.04853566]
[1642088167820,0.00341054,3298.4,3298.3,3.8]
[1642088168918,0.00341054,3298.4,3298.3,6.97021344]
[1642088169119,0.00341054,3298.4,3298.3,7.34906344]
[1642088169519,0.00341054,3298.4,3298.3,8.6529906]
[1642088170122,0.00341054,3298.4,3298.3,5.1529906]
[1642088170320,0.00341054,3298.4,3298.3,9.0529906]
[1642088170721,0.00341054,3298.4,3298.3,5.1529906]
[1642088170920,0.00341054,3298.4,3298.3,0.67885]
[1642088171121,0.00341054,3298.4,3297.8,0.75774]
[1642088171320,0.7578309,3298.2,3297.8,0.75774]
[1642088171578,0.03426574,3298.2,3297.6,0.37893]
[1642088171763,0.00170527,3298.1,3297.6,0.37893]
[1642088172270,0.00113685,3298.0,3297.6,0.37893]
[1642088172463,0.00113685,3298.0,3297.7,0.0663389]
[1642088172663,0.00568424,3298.8,3297.6,0.37893]
[1642088173066,0.00511581,3298.7,3298.3,0.46844435]
[1642088173363,1.13932432,3299.5,3298.5,0.37881]
[1642088173364,0.00454739,3298.6,3298.5,0.37881]
[1642088174366,0.00454739,3298.6,3298.5,5.37881]
[1642088175615,0.00454739,3298.6,3298.5,0.37881]
[1642088175815,0.00454739,3298.6,3298.4,0.3]
[1642088176014,0.00454739,3298.6,3298.3,0.46844435]
[1642088176214,0.00397897,3298.5,3297.7,3.3057]
[1642088176415,0.00397897,3298.5,3297.6,4.227]
[1642088176618,1.41291395,3297.8,3297.6,3.927]
[1642088176816,1.41291395,3297.8,3297.5,0.00170527]
[1642088177015,1.71291395,3297.8,3297.5,0.00170527]
[1642088177216,1.71291395,3297.8,3297.3,0.00284211]
[1642088177418,1.71291395,3297.8,3296.8,0.58330701]
[1642088177419,2.47084485,3297.8,3296.8,0.58330701]
[1642088177615,1.74496224,3297.8,3296.9,0.00511581]
[1642088177815,1.10082058,3297.1,3296.9,0.00511581]
[1642088178018,0.3,3297.1,3296.9,0.00511581]
[1642088178516,0.79348931,3297.7,3296.9,0.00511581]
[1642088178917,1.09348931,3297.7,3296.7,0.00625265]
[1642088179169,1.47629699,3297.6,3296.7,0.00625265]
[1642088179364,1.47629699,3297.6,3297.0,0.37895]
[1642088179564,0.7579333,3297.5,3297.1,0.04]
[1642088179864,1.09087103,3297.5,3297.2,0.00341054]
[1642088180864,1.09087103,3297.5,3296.1,0.75814]
[1642088180865,7.64087103,3297.5,3296.1,0.75814]
[1642088181068,0.75823,3297.3,3296.1,0.75814]
[1642088181266,0.75823,3297.3,3296.2,0.00568423]
[1642088181267,0.7582017,3296.8,3296.2,0.00568423]
[1642088181468,0.03619188,3296.8,3296.2,0.00568423]
[1642088181666,1.85374193,3296.9,3296.3,0.37909]
[1642088182068,1.85374193,3296.9,3296.4,0.00454739]
[1642088182367,0.3,3296.6,3295.9,0.40672195]
[1642088182571,1.85374193,3296.9,3295.9,0.40672195]
[1642088182813,0.0022737,3296.8,3296.0,0.00227369]
[1642088183013,0.0022737,3296.8,3296.3,0.37909]
[1642088183217,5.40714,3298.2,3296.3,0.37909]
[1642088183218,0.03095643,3296.6,3296.4,0.08793119]
[1642088183416,0.03670576,3298.0,3296.5,6.55]
[1642088183614,3.06752236,3298.6,3296.5,6.55113685]
[1642088183816,0.00568423,3297.7,3296.5,6.55113685]
[1642088184015,0.00568423,3297.7,3296.5,6.91637176]
[1642088184216,0.00511581,3297.6,3296.8,0.46248119]
[1642088184615,0.00454738,3297.5,3297.2,0.37896]
[1642088184815,0.00454738,3297.5,3297.3,0.06876752]
[1642088185017,0.00397896,3297.4,3297.3,0.06876752]
[1642088185216,0.00397896,3297.4,3297.3,6.55]
[1642088185615,0.00397896,3297.4,3297.3,6.85]
[1642088186015,7.896e-05,3297.4,3297.3,6.85]
[1642088186214,9.4952,3299.7,3297.4,6.55]
[1642088186215,0.04522582,3299.2,3297.4,6.55]
[1642088186414,9.4952,3299.7,3298.5,0.37884]
[1642088186415,3.6478,3299.7,3298.5,0.37884]
[1642088186673,0.00568423,3298.4,3298.2,1.05768]
[1642088186869,1.56192042,3299.6,3298.3,5.35]
[1642088187072,0.03086377,3299.6,3298.3,9.39428802]
[1642088187270,0.00511582,3299.3,3299.0,0.52769318]
[1642088187470,0.00511582,3299.3,3299.1,0.06097996]
[1642088187669,6.07,3300.0,3299.2,4.1574]
[1642088187872,6.07,3300.0,3299.3,0.41534934]
[1642088188071,6.07,3300.0,3299.3,1.78058425]
[1642088188072,0.00852636,3299.9,3299.3,1.78058425]
[1642088188269,6.07,3300.0,3299.3,1.72823491]
[1642088188469,6.07,3300.0,3299.7,0.43965497]
[1642088188671,5.72526388,3300.2,3299.8,0.74161]
[1642088188870,5.72526388,3300.2,3299.9,0.04857731]
[1642088189076,0.00113684,3300.1,3299.9,0.363]
[1642088189571,5.72526388,3300.2,3300.0,0.06056885]
[1642088189572,4.25,3300.2,3300.0,0.06056885]
[1642088189770,4.25,3300.2,3300.0,0.43917885]
[1642088189971,4.25,3300.2,3300.0,0.37861]
[1642088190421,4.25,3300.2,3300.1,0.49290178]
[1642088191018,4.25,3300.2,3300.1,7.04290178]
[1642088191222,0.00284852,3300.3,3300.2,6.55]
[1642088191424,4.02300139,3301.9,3301.6,0.37849]
[1642088191425,0.03040139,3301.9,3301.6,0.37849]
[1642088191620,1.00915788,3301.9,3301.6,0.37849]
[1642088192222,1.27074328,3301.8,3301.6,0.37849]